fUSD/lending_fUSD_20250720
["ID","MTS","AMOUNT","RATE_DAILY","PERIOD"]
[373548678,1753037438586,-550.95474995,0.00019178,2]
[373548680,1753037438595,-460.0,0.00019178,2]
[373548682,1753037438604,-480.0,0.00019178,2]
[373548684,1753037438614,-480.0,0.00019178,2]
[373548686,1753037438623,-480.0,0.00019178,2]
[373548687,1753037438633,-460.0,0.00019178,2]
[373548689,1753037438643,-480.0,0.00019178,2]
[373548692,1753037438653,-443.78162623,0.00019178,2]
[373548693,1753037438663,-480.0,0.00019178,2]
[373548695,1753037438673,-480.0,0.00019178,2]
[373548697,1753037438682,-218.2206099,0.00019178,2]
[373548699,1753037438691,-500.0,0.00019178,2]
[373548701,1753037438700,-500.0,0.00019178,2]
[373548703,1753037438710,-500.0,0.00019178,2]
[373548705,1753037438719,-500.0,0.00019178,2]
[373548707,1753037438728,-500.0,0.00019178,2]
[373548709,1753037438737,-500.0,0.00019178,2]
[373548711,1753037438746,-500.0,0.00019178,2]
[373548713,1753037438755,-500.0,0.00019178,2]
[373548715,1753037438765,-500.0,0.00019178,2]
[373548717,1753037438774,-500.0,0.00019178,2]
[373548719,1753037438783,-393.49491247,0.00019178,2]
[373548721,1753037438793,-500.0,0.00019178,2]
[373548723,1753037438802,-500.0,0.00019178,2]
[373548725,1753037438812,-500.0,0.00019178,2]
[373548727,1753037438821,-500.0,0.00019178,2]
[373548729,1753037438830,-500.0,0.00019178,2]
[373548731,1753037438839,-500.0,0.00019178,2]
[373548733,1753037438849,-500.0,0.00019178,2]
[373548735,1753037438858,-500.0,0.00019178,2]
[373548737,1753037438868,-500.0,0.00019178,2]
[373548739,1753037438877,-500.0,0.00019178,2]
[373548741,1753037438886,-200.0,0.00019178,2]
[373548743,1753037438901,-500.0,0.00019178,2]
[373548745,1753037438911,-500.0,0.00019178,2]
[373548747,1753037438921,-500.0,0.00019178,2]
[373548749,1753037438932,-500.0,0.00019178,2]
[373548750,1753037438941,-500.0,0.00019178,2]
[373548752,1753037438951,-500.0,0.00019178,2]
[373548754,1753037438960,-500.0,0.00019178,2]
[373548756,1753037438968,-500.0,0.00019178,2]
[373548758,1753037438977,-500.0,0.00019178,2]
[373548760,1753037438988,-500.0,0.00019178,2]
[373548762,1753037438998,-500.0,0.00019178,2]
[373548764,1753037439007,-500.0,0.00019178,2]
[373548766,1753037439016,-500.0,0.00019178,2]
[373548768,1753037439026,-500.0,0.00019178,2]
[373548770,1753037439036,-500.0,0.00019178,2]
[373548772,1753037439044,-500.0,0.00019178,2]
[373548774,1753037439054,-500.0,0.00019178,2]
[373548776,1753037439063,-500.0,0.00019178,2]
[373548778,1753037439073,-500.0,0.00019178,2]
[373548780,1753037439082,-500.0,0.00019178,2]
[373548782,1753037439092,-500.0,0.00019178,2]
[373548784,1753037439101,-500.0,0.00019178,2]
[373548785,1753037439110,-500.0,0.00019178,2]
[373548787,1753037439120,-480.0,0.00019178,2]
[373548789,1753037439128,-460.0,0.00019178,2]
[373548791,1753037439137,-480.0,0.00019178,2]
[373548793,1753037439146,-742.08390185,0.00019178,2]
[373548795,1753037439155,-742.08390185,0.00019178,2]
[373548797,1753037439164,-742.08390185,0.00019178,2]
[373548799,1753037439173,-742.08390185,0.00019178,2]
[373548801,1753037439182,-742.08390185,0.00019178,2]
[373548803,1753037439191,-742.08390185,0.00019178,2]
[373548805,1753037439200,-742.08390185,0.00019178,2]
[373548807,1753037439210,-742.08390185,0.00019178,2]
[373548809,1753037439219,-742.08390185,0.00019178,2]
[373548811,1753037439228,-742.08390185,0.00019178,2]
[373548813,1753037439237,-742.08390185,0.00019178,2]
[373548815,1753037439246,-742.08390185,0.00019178,2]
[373548816,1753037439255,-742.08390185,0.00019178,2]
[373548817,1753037439264,-742.08390185,0.00019178,2]
[373548819,1753037439273,-742.08390185,0.00019178,2]
[373548821,1753037439283,-742.08390185,0.00019178,2]
[373548823,1753037439297,-742.08390185,0.00019178,2]
[373548825,1753037439306,-742.08390185,0.00019178,2]
[373548827,1753037439315,-742.08390185,0.00019178,2]
[373548829,1753037439324,-742.08390185,0.00019178,2]
[373548831,1753037439334,-742.08390185,0.00019178,2]
[373548833,1753037439343,-742.08390185,0.00019178,2]
[373548835,1753037439352,-742.08390185,0.00019178,2]
[373548837,1753037439361,-742.08390185,0.00019178,2]
[373548839,1753037439371,-742.08390185,0.00019178,2]
[373548841,1753037439381,-742.08390185,0.00019178,2]
[373548843,1753037439389,-742.08390185,0.00019178,2]
[373548845,1753037439399,-742.08390185,0.00019178,2]
[373548847,1753037439407,-742.08390185,0.00019178,2]
[373548849,1753037439417,-742.08390185,0.00019178,2]
[373548851,1753037439427,-742.08390185,0.00019178,2]
[373548853,1753037439436,-742.08390185,0.00019178,2]
[373548855,1753037439445,-742.08390185,0.00019178,2]
[373548857,1753037439454,-742.08390185,0.00019178,2]
[373548858,1753037439464,-742.08390185,0.00019178,2]
[373548860,1753037439473,-742.08390185,0.00019178,2]
[373548862,1753037439482,-742.08390185,0.00019178,2]
[373548864,1753037439491,-742.08390185,0.00019178,2]
[373548866,1753037439501,-742.08390185,0.00019178,2]
[373548868,1753037439510,-742.08390185,0.00019178,2]
[373548870,1753037439520,-742.08390185,0.00019178,2]
[373548872,1753037439529,-742.08390185,0.00019178,2]
[373548874,1753037439538,-742.08390185,0.00019178,2]
[373548876,1753037439547,-742.08390185,0.00019178,2]
[373548878,1753037439556,-742.08390185,0.00019178,2]
[373548880,1753037439566,-742.08390185,0.00019178,2]
[373548882,1753037439575,-742.08390185,0.00019178,2]
[373548884,1753037439584,-742.08390185,0.00019178,2]
[373548886,1753037439594,-437.82633812,0.00019178,2]
[373548888,1753037439602,-193.42112888,0.00019178,2]
[373548892,1753037439629,-286.57887112,0.00019178,2]
[373548894,1753037439639,-480.0,0.00019178,2]
[373548895,1753037439649,-742.0839017,0.00019178,2]
[373548897,1753037439658,-441.76289054,0.00019178,2]
[373548899,1753037439668,-480.0,0.00019178,2]
[373548901,1753037439677,-480.0,0.00019178,2]
[373548903,1753037439687,-460.70152373,0.00019178,2]
[373548905,1753037439696,-441.73600397,0.00019178,2]
[373548907,1753037439705,-480.0,0.00019178,2]
[373548910,1753037439715,-494.30248967,0.00019178,2]
[373548912,1753037439724,-509.45234541,0.00019178,2]
[373548914,1753037439734,-504.55379692,0.00019178,2]
[373548917,1753037439743,-480.0,0.00019178,2]
[373548919,1753037439752,-480.0,0.00019178,2]
[373548921,1753037439761,-440.0,0.00019178,2]
[373548923,1753037439770,-437.63612717,0.00019178,2]
[373548925,1753037439779,-167.050915,0.00019178,2]
[373548927,1753037439788,-520.03594645,0.00019178,2]
[373548929,1753037439798,-480.0,0.00019178,2]
[373548931,1753037439807,-290.90360838,0.00019178,2]
[373548933,1753037439816,-310.15333417,0.00019178,2]
[373548935,1753037439825,-384.0969804,0.00019178,2]
[373548937,1753037439834,-480.0,0.00019178,2]
[373548939,1753037439843,-480.0,0.00019178,2]
[373548941,1753037439853,-461.22213535,0.00019178,2]
[373548943,1753037439862,-480.0,0.00019178,2]
[373548945,1753037439871,-480.0,0.00019178,2]
[373548947,1753037439880,-461.91849579,0.00019178,2]
[373548949,1753037439889,-440.0,0.00019178,2]
[373548950,1753037439898,-480.0,0.00019178,2]
[373548952,1753037439907,-480.0,0.00019178,2]
[373548954,1753037439916,-480.0,0.00019178,2]
[373548956,1753037439926,-442.57741611,0.00019178,2]
[373548958,1753037439935,-461.54134094,0.00019178,2]
[373548960,1753037439944,-480.0,0.00019178,2]
[373548962,1753037439953,-480.0,0.00019178,2]
[373548964,1753037439962,-460.0,0.00019178,2]
[373548966,1753037439972,-442.21106575,0.00019178,2]
[373548968,1753037439981,-462.14036608,0.00019178,2]
[373548970,1753037439990,-287.03356834,0.00019178,2]
[373548972,1753037440000,-480.0,0.00019178,2]
[373548974,1753037440009,-480.0,0.00019178,2]
[373548976,1753037440019,-480.0,0.00019178,2]
[373548978,1753037440028,-480.0,0.00019178,2]
[373548980,1753037440037,-480.0,0.00019178,2]
[373548982,1753037440046,-480.0,0.00019178,2]
[373548984,1753037440055,-380.0,0.00019178,2]
[373548986,1753037440065,-480.0,0.00019178,2]
[373548988,1753037440074,-480.0,0.00019178,2]
[373548990,1753037440083,-280.45111583,0.00019178,2]
[373548992,1753037440092,-480.0,0.00019178,2]
[373548994,1753037440101,-480.0,0.00019178,2]
[373548996,1753037440110,-480.0,0.00019178,2]
[373548998,1753037440121,-480.0,0.00019178,2]
[373548999,1753037440130,-480.0,0.00019178,2]
[373549001,1753037440139,-480.0,0.00019178,2]
[373549003,1753037440148,-369.3780519,0.00019178,2]
[373549005,1753037440157,-480.0,0.00019178,2]
[373549007,1753037440165,-386.00988617,0.00019178,2]
[373549009,1753037440174,-480.0,0.00019178,2]
[373549011,1753037440183,-236.72189683,0.00019178,2]
[373549013,1753037440192,-480.0,0.00019178,2]
[373549015,1753037440201,-480.0,0.00019178,2]
[373549017,1753037440211,-480.0,0.00019178,2]
[373549019,1753037440221,-480.0,0.00019178,2]
[373549021,1753037440231,-480.0,0.00019178,2]
[373549023,1753037440240,-480.0,0.00019178,2]
[373549025,1753037440250,-237.1926122,0.00019178,2]
[373549027,1753037440260,-324.15352508,0.00019178,2]
[373549029,1753037440269,-480.0,0.00019178,2]
[373549031,1753037440278,-440.0,0.00019178,2]
[373549032,1753037440289,-468.62166326,0.00019178,2]
[373549034,1753037440299,-369.75642419,0.00019178,2]
[373549036,1753037440308,-480.0,0.00019178,2]
[373549037,1753037440318,-496.41,0.00019178,2]
[373549039,1753037440327,-135.11250176,0.00019178,2]
[373549043,1753037440366,-344.88749824,0.00019178,2]
[373549045,1753037440376,-480.0,0.00019178,2]
[373549047,1753037440385,-480.0,0.00019178,2]
[373549048,1753037440394,-480.0,0.00019178,2]
[373549050,1753037440404,-480.0,0.00019178,2]
[373549052,1753037440413,-447.38619282,0.00019178,2]
[373549054,1753037440422,-151.0,0.00019178,2]
[373549055,1753037440431,-480.0,0.00019178,2]
[373549057,1753037440440,-480.0,0.00019178,2]
[373549059,1753037440449,-480.0,0.00019178,2]
[373549061,1753037440458,-394.44288811,0.00019178,2]
[373549063,1753037440467,-480.0,0.00019178,2]
[373549064,1753037440477,-480.0,0.00019178,2]
[373549066,1753037440486,-480.0,0.00019178,2]
[373549068,1753037440495,-480.0,0.00019178,2]
[373549070,1753037440504,-480.0,0.00019178,2]
[373549071,1753037440513,-480.0,0.00019178,2]
[373549073,1753037440523,-480.0,0.00019178,2]
[373549075,1753037440532,-480.0,0.00019178,2]
[373549077,1753037440541,-355.83844543,0.00019178,2]
[373549078,1753037440550,-480.0,0.00019178,2]
[373549080,1753037440559,-480.0,0.00019178,2]
[373549082,1753037440568,-480.0,0.00019178,2]
[373549084,1753037440577,-480.0,0.00019178,2]
[373549086,1753037440587,-480.0,0.00019178,2]
[373549087,1753037440596,-480.0,0.00019178,2]
[373549089,1753037440605,-480.0,0.00019178,2]
[373549091,1753037440614,-1000.0,0.00019178,2]
[373549092,1753037440623,-386.81811233,0.00019178,2]
[373549094,1753037440633,-645.25,0.00019178,2]
[373549096,1753037440642,-480.0,0.00019178,2]
[373549098,1753037440651,-480.0,0.00019178,2]
[373549100,1753037440660,-645.25,0.00019178,2]
[373549101,1753037440669,-645.25,0.00019178,2]
[373549103,1753037440678,-645.25,0.00019178,2]
[373549105,1753037440687,-645.25,0.00019178,2]
[373549107,1753037440696,-480.0,0.00019178,2]
[373549109,1753037440706,-480.0,0.00019178,2]
[373549111,1753037440716,-480.0,0.00019178,2]
[373549112,1753037440725,-480.0,0.00019178,2]
[373549114,1753037440734,-480.0,0.00019178,2]
[373549116,1753037440743,-480.0,0.00019178,2]
[373549118,1753037440752,-480.0,0.00019178,2]
[373549120,1753037440762,-480.0,0.00019178,2]
[373549122,1753037440771,-480.0,0.00019178,2]
[373549124,1753037440780,-576.31149683,0.00019178,2]
[373549126,1753037440793,-480.0,0.00019178,2]
[373549128,1753037440803,-480.0,0.00019178,2]
[373549130,1753037440813,-480.0,0.00019178,2]
[373549131,1753037440822,-480.0,0.00019178,2]
[373549133,1753037440831,-480.0,0.00019178,2]
[373549135,1753037440840,-480.0,0.00019178,2]
[373549137,1753037440850,-420.0,0.00019178,2]
[373549139,1753037440860,-480.0,0.00019178,2]
[373549140,1753037440870,-500.0,0.00019178,2]
[373549142,1753037440879,-480.0,0.00019178,2]
[373549144,1753037440890,-151.0,0.00019178,2]
[373549146,1753037440899,-480.0,0.00019178,2]
[373549148,1753037440909,-480.0,0.00019178,2]
[373549150,1753037440919,-189.32799639,0.00019178,2]
[373549151,1753037440928,-500.0,0.00019178,2]
[373549153,1753037440938,-500.0,0.00019178,2]
[373549155,1753037440947,-500.0,0.00019178,2]
[373549157,1753037440957,-239.37916445,0.00019178,2]
[373549159,1753037440966,-480.0,0.00019178,2]
[373549161,1753037440976,-480.0,0.00019178,2]
[373549163,1753037440985,-449.54119992,0.00019178,2]
[373549165,1753037440995,-529.72786263,0.00019178,2]
[373549167,1753037441004,-480.0,0.00019178,2]
[373549169,1753037441014,-480.0,0.00019178,2]
[373549170,1753037441023,-480.0,0.00019178,2]
[373549172,1753037441033,-544.71,0.00019178,2]
[373549174,1753037441043,-468.02113016,0.00019178,2]
[373549176,1753037441052,-480.0,0.00019178,2]
[373549178,1753037441061,-535.67,0.00019178,2]
[373549180,1753037441074,-480.0,0.00019178,2]
[373549182,1753037441083,-480.0,0.00019178,2]
[373549184,1753037441093,-480.0,0.00019178,2]
[373549186,1753037441103,-425.15375916,0.00019178,2]
[373549188,1753037441122,-41.07695511,0.00019178,2]
[373549190,1753037441131,-480.0,0.00019178,2]
[373549192,1753037441140,-719.21204489,0.00019178,2]
[373549196,1753037441169,-579.96795511,0.00019178,2]
[373549198,1753037441178,-480.0,0.00019178,2]
[373549200,1753037441187,-480.0,0.00019178,2]
[373549201,1753037441197,-480.0,0.00019178,2]
[373549203,1753037441207,-151.0,0.00019178,2]
[373549205,1753037441216,-151.0,0.00019178,2]
[373549207,1753037441225,-480.0,0.00019178,2]
[373549209,1753037441235,-480.0,0.00019178,2]
[373549211,1753037441244,-480.0,0.00019178,2]
[373549213,1753037441253,-480.0,0.00019178,2]
[373549215,1753037441262,-480.0,0.00019178,2]
[373549217,1753037441271,-612.05,0.00019178,2]
[373549219,1753037441281,-65.1821337,0.00019178,2]
[373549221,1753037441296,-414.8178663,0.00019178,2]
[373549223,1753037441306,-480.0,0.00019178,2]
[373549225,1753037441316,-480.0,0.00019178,2]
[373549226,1753037441326,-460.0,0.00019178,2]
[373549228,1753037441336,-170.86647778,0.00019178,2]
[373549239,1753037441445,-309.13352222,0.00019178,2]
[373549241,1753037441455,-242.61460219,0.00019178,2]
[373549266,1753037441714,-237.38539781,0.00019178,2]
[373549268,1753037441724,-372.31811863,0.00019178,2]
[373549271,1753037441743,-107.68188137,0.00019178,2]
[373549273,1753037441753,-480.0,0.00019178,2]
[373549275,1753037441764,-383.06290603,0.00019178,2]
[373549277,1753037441774,-323.53696441,0.00019178,2]
[373549279,1753037441785,-129.67518399,0.00019178,2]
[373549283,1753037441814,-350.32481601,0.00019178,2]
[373549285,1753037441824,-354.36749465,0.00019178,2]
[373549289,1753037441863,-145.63250535,0.00019178,2]
[373549291,1753037441873,-285.28079904,0.00019178,2]
[373549293,1753037441885,-214.71920096,0.00019178,2]
[373549295,1753037441896,-62.26095599,0.00019178,2]
[373549298,1753037441910,-337.303597,0.00019178,2]
[373549300,1753037441920,-500.0,0.00019178,2]
[373549302,1753037441930,-1527.7392028,0.00019178,2]
[373549304,1753037441943,-68.7107972,0.00019178,2]
[373549306,1753037441953,-480.0,0.00019178,2]
[373549308,1753037441964,-1112.7392023,0.00019178,2]
[373549379,1753037442825,-2021.0907977,0.00019178,2]
[373549382,1753037442836,-480.0,0.00019178,2]
[373549384,1753037442848,-511.39,0.00019178,2]
[373549387,1753037442860,-268.48432015,0.00019178,2]
[373549390,1753037442885,-211.51567985,0.00019178,2]
[373549392,1753037442896,-480.0,0.00019178,2]
[373549394,1753037442907,-480.0,0.00019178,2]
[373549397,1753037442919,-1203.79,0.00019178,2]
[373549399,1753037442930,-480.0,0.00019178,2]
[373549401,1753037442940,-342.83974643,0.00019178,2]
[373549407,1753037442985,-1052.44730923,0.00019178,2]
[373549430,1753037443197,-463.42294434,0.00019178,2]
[373549433,1753037443208,-480.0,0.00019178,2]
[373549435,1753037443219,-480.0,0.00019178,2]
[373549437,1753037443229,-448.93419105,0.00019178,2]
[373549694,1753037445778,-31.06580895,0.00019178,2]
[373549696,1753037445788,-500.0,0.00019178,2]
[373549698,1753037445798,-645.17919495,0.00019178,2]
[373549719,1753037445989,-1354.82080505,0.00019178,2]
[373549721,1753037446000,-150.0,0.00019178,2]
[373549723,1753037446009,-480.0,0.00019178,2]
[373549725,1753037446019,-2085.43361898,0.00019178,2]
[373549727,1753037446031,-3500.36638102,0.00019178,2]
[373549729,1753037446040,-480.0,0.00019178,2]
[373549731,1753037446049,-480.0,0.00019178,2]
[373549733,1753037446059,-480.0,0.00019178,2]
[373549735,1753037446068,-466.52049224,0.00019178,2]
[373549737,1753037446078,-480.0,0.00019178,2]
[373549739,1753037446087,-480.0,0.00019178,2]
[373549741,1753037446097,-480.0,0.00019178,2]
[373549743,1753037446107,-480.0,0.00019178,2]
[373549745,1753037446116,-480.0,0.00019178,2]
[373549747,1753037446127,-480.0,0.00019178,2]
[373549749,1753037446136,-480.0,0.00019178,2]
[373549751,1753037446145,-480.0,0.00019178,2]
[373549753,1753037446155,-480.0,0.00019178,2]
[373549755,1753037446164,-480.0,0.00019178,2]
[373549757,1753037446174,-480.0,0.00019178,2]
[373549759,1753037446183,-151.0,0.00019178,2]
[373549761,1753037446192,-1101.66,0.00019178,2]
[373549763,1753037446202,-462.99147481,0.00019178,2]
[373549766,1753037446212,-500.0,0.00019178,2]
[373549768,1753037446221,-480.0,0.00019178,2]
[373549770,1753037446231,-480.0,0.00019178,2]
[373549772,1753037446240,-493.46383809,0.00019178,2]
[373549774,1753037446250,-489.19362194,0.00019178,2]
[373549775,1753037446259,-440.0,0.00019178,2]
[373549778,1753037446269,-359.26039388,0.00019178,2]
[373549779,1753037446278,-1831.22878303,0.00019178,2]
[373550797,1753037647624,161.14,0.000229,31]
[373550798,1753037647696,161.14,0.000229,31]
[373550799,1753037647780,161.14,0.000229,31]
[373550803,1753037879337,509.0,0.00015679,2]
[373550804,1753038063828,320.41,0.00026625,120]
[373550805,1753038086105,1000.0,0.00030136,120]
[373550807,1753038157988,480.0,0.00030136,120]
[373550808,1753038158022,480.0,0.00030136,120]
[373550809,1753038158138,2508.47,0.00030136,120]
[373550810,1753038160476,480.0,0.00030136,120]
[373550811,1753038160514,491.66,0.00030136,120]
[373550812,1753038161071,480.0,0.00030136,120]
[373550813,1753038161251,480.0,0.00030136,120]
[373550814,1753038161830,480.0,0.00030136,120]
[373550815,1753038162848,480.0,0.00030136,120]
[373550816,1753038163578,480.0,0.00030136,120]
[373550817,1753038164411,2580.95,0.00030136,120]
[373550818,1753038164442,2449.97,0.00030136,120]
[373550819,1753038164542,4122.07,0.00030136,120]
[373550820,1753038164696,1782.3,0.00030136,120]
[373550821,1753038165725,480.0,0.00030136,120]
[373550822,1753038166241,1117.16,0.00030136,120]
[373550823,1753038166273,480.0,0.00030136,120]
[373550824,1753038166737,2538.3,0.00030136,120]
[373550825,1753038166787,480.0,0.00030136,120]
[373550826,1753038167109,480.0,0.00030136,120]
[373550827,1753038168367,480.0,0.00030136,120]
[373550828,1753038169556,848.39,0.00030136,120]
[373550829,1753038170593,480.0,0.00030136,120]
[373550830,1753038171373,410.33109642,0.00030136,120]
[373550831,1753038171669,480.0,0.00030136,120]
[373550832,1753038171961,480.0,0.00030136,120]
[373550833,1753038172400,480.0,0.00030136,120]
[373550834,1753038172431,480.0,0.00030136,120]
[373550835,1753038172509,480.0,0.00030136,120]
[373550836,1753038173172,480.0,0.00030136,120]
[373550837,1753038173321,1455.64,0.00030136,120]
[373550838,1753038174043,1898.64,0.00030136,120]
[373550839,1753038174462,743.5,0.00030136,120]
[373550840,1753038174631,240.26276315,0.00030136,120]
[373550841,1753038174936,798.63,0.00030136,120]
[373550842,1753038175177,5840.49,0.00030136,120]
[373550843,1753038175938,480.0,0.00030136,120]
[373550844,1753038176630,480.0,0.00030136,120]
[373550845,1753038176670,480.0,0.00030136,120]
[373550846,1753038177141,1765.02,0.00030136,120]
[373550847,1753038177793,1389.79,0.00030136,120]
[373550848,1753038178531,480.0,0.00030136,120]
[373550849,1753038179587,1273.49,0.00030136,120]
[373550850,1753038179972,1273.49,0.00030136,120]
[373550851,1753038180379,500.0,0.00030136,120]
[373550852,1753038180411,1273.49,0.00030136,120]
[373550853,1753038180526,4137.02,0.00030136,120]
[373550854,1753038180769,480.0,0.00030136,120]
[373550855,1753038180935,1273.49,0.00030136,120]
[373550856,1753038180975,480.0,0.00030136,120]
[373550857,1753038181364,621.63505177,0.00030136,120]
[373550858,1753038181573,480.0,0.00030136,120]
[373550859,1753038182412,1273.49,0.00030136,120]
[373550860,1753038182758,480.0,0.00030136,120]
[373550861,1753038182916,1273.49,0.00030136,120]
[373550862,1753038183324,1273.49,0.00030136,120]
[373550863,1753038183716,1273.49,0.00030136,120]
[373550864,1753038184838,1273.49,0.00030136,120]
[373550865,1753038184872,480.0,0.00030136,120]
[373550866,1753038185152,480.0,0.00030136,120]
[373550867,1753038185183,1206.21,0.00030136,120]
[373550868,1753038185803,1273.49,0.00030136,120]
[373550869,1753038186150,480.0,0.00030136,120]
[373550870,1753038186311,1273.49,0.00030136,120]
[373550871,1753038186718,1273.49,0.00030136,120]
[373550872,1753038187031,1273.49,0.00030136,120]
[373550873,1753038187152,1206.61,0.00030136,120]
[373550874,1753038188145,1273.49,0.00030136,120]
[373550875,1753038188208,641.13,0.00030136,120]
[373550876,1753038188343,1635.07,0.00030136,120]
[373550877,1753038189013,1273.49,0.00030136,120]
[373550878,1753038189216,480.0,0.00030136,120]
[373550879,1753038189274,1273.49,0.00030136,120]
[373550880,1753038189719,1273.49,0.00030136,120]
[373550881,1753038189758,480.0,0.00030136,120]
[373550882,1753038189790,543.58825546,0.00030136,120]
[373550883,1753038189928,896.45,0.00030136,120]
[373550884,1753038189981,486.20118639,0.00030136,120]
[373550885,1753038190023,1273.49,0.00030136,120]
[373550886,1753038190081,1323.86,0.00030136,120]
[373550887,1753038190282,1216.51,0.00030136,120]
[373550888,1753038190436,1559.44,0.00030136,120]
[373550889,1753038190599,1273.49,0.00030136,120]
[373550890,1753038190640,1086.98,0.00030136,120]
[373550891,1753038191070,1273.49,0.00030136,120]
[373550892,1753038191423,1273.49,0.00030136,120]
[373550893,1753038191457,480.0,0.00030136,120]
[373550894,1753038191540,480.0,0.00030136,120]
[373550895,1753038191808,480.0,0.00030136,120]
[373550896,1753038191881,1273.49,0.00030136,120]
[373550897,1753038192296,1273.49,0.00030136,120]
[373550898,1753038192638,480.0,0.00030136,120]
[373550899,1753038192684,1273.59,0.00030136,120]
[373550900,1753038192795,1377.78,0.00030136,120]
[373550901,1753038193394,5987.84,0.00030136,120]
[373550902,1753038194639,480.0,0.00030136,120]
[373550903,1753038195322,4164.34,0.00030136,120]
[373550904,1753038195478,480.0,0.00030136,120]
[373550905,1753038195513,2833.48,0.00030136,120]
[373550906,1753038195907,480.0,0.00030136,120]
[373550907,1753038196166,480.0,0.00030136,120]
[373550908,1753038196456,480.0,0.00030136,120]
[373550909,1753038197458,480.0,0.00030136,120]
[373550910,1753038198064,480.0,0.00030136,120]
[373550911,1753038198118,480.0,0.00030136,120]
[373550912,1753038198650,480.0,0.00030136,120]
[373550913,1753038199802,2417.86,0.00030136,120]
[373550914,1753038200156,480.0,0.00030136,120]
[373550915,1753038200922,786.15,0.00030136,120]
[373550916,1753038201160,1468.65,0.00030136,120]
[373550917,1753038201384,587.53,0.00030136,120]
[373550918,1753038201475,480.0,0.00030136,120]
[373550919,1753038201857,480.0,0.00030136,120]
[373550920,1753038201897,480.0,0.00030136,120]
[373550921,1753038202231,480.0,0.00030136,120]
[373550922,1753038204960,3832.07,0.00030136,120]
[373550923,1753038205360,480.0,0.00030136,120]
[373550924,1753038206185,2756.4,0.00030136,120]
[373550925,1753038206360,1547.83,0.00030136,120]
[373550926,1753038206584,802.22,0.00030136,120]
[373550927,1753038206633,1314.4,0.00030136,120]
[373550928,1753038207122,1225.09,0.00030136,120]
[373550929,1753038207563,480.0,0.00030136,120]
[373550930,1753038207958,1691.48,0.00030136,120]
[373550931,1753038208064,480.0,0.00030136,120]
[373550932,1753038208978,480.0,0.00030136,120]
[373550933,1753038209523,1150.31,0.00030136,120]
[373550934,1753038209726,2726.8,0.00030136,120]
[373550935,1753038210357,3188.88,0.00030136,120]
[373550936,1753038210916,420.28478504,0.00030136,120]
[373550937,1753038211238,480.0,0.00030136,120]
[373550938,1753038211422,480.0,0.00030136,120]
[373550939,1753038211749,1544.06,0.00030136,120]
[373550940,1753038211796,2168.37,0.00030136,120]
[373550941,1753038212272,480.0,0.00030136,120]
[373550942,1753038213469,480.0,0.00030136,120]
[373550943,1753038213503,480.0,0.00030136,120]
[373550944,1753038214290,1418.59,0.00030136,120]
[373550945,1753038215008,879.22,0.00030136,120]